[Event "FIDE WSTC Open 50 2025"]
[Site "Prague"]
[Date "2025.02.18"]
[Round "2.37"]
[White "Olivier, Pierre"]
[Black "Svensson, Bengt"]
[Result "1/2-1/2"]
[Annotator "TA"]
[ECO "D26"]
[WhiteElo "2152"]
[BlackElo "2297"]
[PlyCount "47"]
[EventDate "2025.02.17"]
[EventType "team-tourn"]
[EventCountry "CZE"]
[SourceTitle "playchess.com"]
[Source "ChessBase"]
[SourceQuality "1"]
[TimeControl "40/5400+30:1800+30"]

{[%evp 11,47,31,40,11,22,23,18,26,16,2,20,3,18,18,27,-6,-11,-19,0,-17,-14,-10,-16,-23,-24,-39,-31,-47,-37,-76,-74,-93,-71,-71,-68,-88,-88,-81]} 1. d4 {[%emt 0:00:09]} d5 {[%emt 0:00:25]} 2. c4 {[%emt 0:00:14]} dxc4 {[%emt 0:00:40]} 3. Nf3 {[%emt 0:00:18]} Nf6 {[%emt 0:00:38]} 4. e3 {[%emt 0:00:17]} e6 {[%emt 0:00:15]} 5. Bxc4 {[%emt 0:00:26]} a6 {[%emt 0:00:17]} 6. O-O {[%emt 0:01:48]} c5 {[%emt 0:02:00]} 7. Be2 {[%emt 0:03:25] D27: Queen's Gambit Accepted: Classical main line: 7 e4!? and 7 a4.} Nc6 {[%emt 0:02:23]} 8. Ne5 {[%emt 0:03:43]} cxd4 {[%emt 0:06:59]} 9. Nxc6 {[%emt 0:00:09] The position is equal.} bxc6 {[%emt 0:00:03]} 10. exd4 {[%emt 0:00:22]} Be7 {[%emt 0:00:49]} 11. Qa4 $146 {[%emt 0:07:50]} (11. Bf4 O-O 12. Nc3 Nd5 13. Be5 Nxc3 14. bxc3 Bd6 15. Bf3 Bxe5 16. dxe5 Qa5 17. Qd6 {½-½ Berkes,F (2618)-Varga,Z (2376) Balatonlelle Rigo Memorial op 2023 (6)}) 11... Bd7 {[%emt 0:03:46]} 12. Qc2 {[%emt 0:02:38]} Qb6 {[%emt 0:05:27]} 13. Nd2 {[%emt 0:18:02]} Qxd4 {[%emt 0:05:25]} 14. Nb3 {[%emt 0:04:54]} Qe4 {[%emt 0:08:44]} 15. Qxe4 {[%emt 0:06:54]} Nxe4 {[%emt 0:00:49]} 16. Be3 {[%emt 0:00:16]} Nf6 {[%emt 0:03:20]} 17. Nc5 {[%emt 0:06:56]} a5 {[%emt 0:06:11]} 18. Nxd7 {[%emt 0:02:34]} Kxd7 {[%emt 0:00:57]} 19. Bd4 {[%emt 0:02:47]} Rhg8 {[%emt 0:03:09]} 20. Bxf6 {[%emt 0:00:48]} Bxf6 {[%emt 0:00:07]} 21. Rfd1+ {[%emt 0:00:47]} Ke7 {[%emt 0:01:32]} 22. Rac1 {[%emt 0:04:54]} Rgd8 {[%emt 0:04:36]} 23. b3 {[%emt 0:01:54]} Rxd1+ {[%emt 0:02:33]} 24. Rxd1 {[%emt 0:00:58] Weighted Error Value: White=0.12 (very precise) /Black=0.06 (flawless)   Inaccurate:     	White=2     	---        OK:         	White=5     	Black=5} 1/2-1/2

[Event "FIDE WSTC Open 50 2025"]
[Site "Prague"]
[Date "2025.02.18"]
[Round "2.38"]
[White "Svenn, Gosta"]
[Black "Kirszenberg, Marc"]
[Result "1-0"]
[Annotator "TA"]
[ECO "A03"]
[WhiteElo "2290"]
[BlackElo "2080"]
[PlyCount "73"]
[EventDate "2025.02.17"]
[EventType "team-tourn"]
[EventCountry "CZE"]
[SourceTitle "playchess.com"]
[Source "ChessBase"]
[SourceQuality "1"]
[TimeControl "40/5400+30:1800+30"]

{[%evp 10,73,-8,-12,7,-11,-12,-7,-8,-11,-3,-30,-19,-34,-32,-87,-63,-45,0,0,0,0,0,0,0,-7,-9,-68,-50,-54,-55,-55,17,19,16,18,16,0,143,116,218,241,248,210,208,217,203,197,363,253,257,41,929,413,913,264,906,908,852,845,29996,29997,29997,29998,29998,29999]} 1. f4 {[%emt 0:00:10]} d5 {[%emt 0:00:21]} 2. e3 {[%emt 0:00:10]} Nf6 {[%emt 0:00:09]} 3. Nf3 {[%emt 0:00:06]} Bf5 {[%emt 0:00:28]} 4. b3 {[%emt 0:01:07]} e6 {[%emt 0:00:11]} 5. Bb2 {[%emt 0:00:26]} Be7 {[%emt 0:00:43]} 6. Be2 {[%emt 0:06:48]} h6 {[%emt 0:01:42] A03: Bird's Opening with 1...d5.} 7. O-O {[%emt 0:00:34]} O-O {[%emt 0:01:17]} 8. Ne5 {[%emt 0:03:33]} Nbd7 {[%emt 0:01:30] The position is equal.} 9. Bf3 {[%emt 0:09:20]} c6 {[%emt 0:07:11]} 10. Nc3 {[%emt 0:01:59]} Nxe5 11. fxe5 Nd7 $146 (11... Ne4 12. Ne2 Qb6 13. Nf4 Bb4 14. c3 Bxc3 15. Bxe4 Bxb2 16. Bxf5 exf5 17. d4 Bxa1 18. Qxa1 {0-1 Happel,L (1823)-Bauch,O (1890) Ruhrgebiet VL1 0405 2004 (9.7)}) 12. Ne2 (12. d4 $15) 12... Qc7 $17 13. d4 Qb6 14. Kh1 a5 15. a4 Bh7 16. Nf4 c5 17. Ba3 Rae8 {[%emt 0:57:19]} 18. Be2 {[%emt 0:32:15]} (18. c3 $11) 18... cxd4 $1 $15 {[%emt 0:01:55]} 19. Bxe7 {[%emt 0:00:51]} Rxe7 {[%emt 0:00:04]} 20. exd4 {[%emt 0:00:09]} Nb8 {[%emt 0:01:45]} (20... f6 $15 21. exf6 Nxf6) 21. Bd3 $11 {[%emt 0:08:01]} Bxd3 {[%emt 0:07:13]} 22. Qxd3 {[%emt 0:00:06] Threatening Nh5.} Nc6 {[%emt 0:00:50]} 23. Rad1 {[%emt 0:00:14]} Rc8 {[%emt 0:06:05]} (23... Rd7 $11 {keeps the balance.}) 24. Nh5 $16 {[%emt 0:06:56] White is more active.} Qd8 {[%emt 0:01:55] [#]} (24... Qc7 $16 {was called for.}) 25. Nf6+ $1 $18 {[%emt 0:13:34][%mdl 512]} gxf6 {[%emt 0:00:11]} 26. Qg3+ {[%emt 0:00:28]} Kf8 {[%emt 0:01:51][%cal Bg8f8,Bf8e8,Be8d7,Bd7c6,Bc6c5,Bc5d4,Bd4d3][%mdl 32] aiming for ...fxe5.} 27. exf6 {[%emt 0:00:07]} Rec7 {[%emt 0:00:07] [#]} 28. c4 $1 {[%emt 0:06:52]} b6 $2 {[%emt 0:05:09]} ({Don't go for} 28... dxc4 $2 29. d5 $18) (28... Ne7) 29. c5 {[%emt 0:00:54] and Qg7+ should not be overlooked} bxc5 {[%emt 0:01:12] [#]} 30. dxc5 {[%emt 0:00:28]} (30. Qg7+ $1 $18 Ke8 31. Qg8+ (31. Qxh6 $2 cxd4 32. Qh7 Qd6 $19) 31... Kd7 32. Qxf7+ Ne7 33. Rfe1 (33. fxe7 Qxe7 34. Qf2 c4 $16)) 30... Nb4 $2 {[%emt 0:01:07][%mdl 8192] Loses the game.} (30... Ne7 $14 31. Qg7+ (31. fxe7+ Qxe7 32. Rd4 Qxc5 $11) 31... Ke8) 31. Qg7+ {[%emt 0:01:16]} Ke8 {[%emt 0:00:01]} 32. Qg8+ {[%emt 0:00:08]} (32. Qxh6 $2 {loses.} Kd7 (32... Rxc5 $2 33. h4 $19) 33. Qf4 Rxc5 $19) 32... Kd7 {[%emt 0:00:05]} 33. Qxf7+ {[%emt 0:00:05]} Kc6 {[%emt 0:00:03]} 34. Qxe6+ {[%emt 0:00:13]} Kxc5 {[%emt 0:00:54]} 35. Rc1+ {[%emt 0:01:56] White mates.} Kd4 {[%emt 0:00:05]} 36. Rf4+ {[%emt 0:00:44]} Kd3 {[%emt 0:00:15]} 37. Rf3+ {[%emt 0:00:19] Weighted Error Value: White=0.21 (precise) /Black=0.55  Loses game:     	---       	Black=1      Missed win:     	White=1     	---        Mistake:       	White=2     	Black=4      Inaccurate:     	White=2     	Black=3      OK:         	White=11    	Black=8      Best:        	White=1     	Black=4      Strong:       	White=1     	Black=1} 1-0

[Event "FIDE WSTC Open 50 2025"]
[Site "Prague"]
[Date "2025.02.18"]
[Round "2.39"]
[White "Guiot Dorel, Jerome"]
[Black "Jaderberg, Bjorn"]
[Result "1/2-1/2"]
[Annotator "TA"]
[ECO "A40"]
[WhiteElo "2030"]
[BlackElo "2134"]
[PlyCount "38"]
[EventDate "2025.02.17"]
[EventType "team-tourn"]
[EventCountry "CZE"]
[SourceTitle "playchess.com"]
[Source "ChessBase"]
[SourceQuality "1"]
[TimeControl "40/5400+30:1800+30"]

{[%evp 9,38,12,31,31,29,5,17,9,14,8,14,0,32,35,19,26,31,14,25,-13,-27,-31,-31,-23,0,0,9,13,18,-9,25]} 1. d4 {[%emt 0:00:07]} e6 {[%emt 0:00:14]} 2. Bf4 {[%emt 0:00:45]} f5 {[%emt 0:00:29]} 3. Nf3 {[%emt 0:01:13]} Nf6 {[%emt 0:00:30]} 4. e3 {[%emt 0:00:46]} b6 {[%emt 0:00:32]} 5. h3 {[%emt 0:01:52]} Bd6 {[%emt 0:00:35]} 6. Bxd6 {[%emt 0:04:30] A80: Dutch Defence: Unusual White second moves.} cxd6 {[%emt 0:00:18]} 7. Be2 {[%emt 0:01:26]} Bb7 {[%emt 0:00:18]} 8. O-O {[%emt 0:01:22]} O-O {[%emt 0:00:33]} 9. c4 {[%emt 0:02:35]} d5 {[%emt 0:10:16]} 10. Nbd2 {[%emt 0:04:16]} Ne4 {[%emt 0:01:14]} 11. cxd5 {[%emt 0:11:19]} Bxd5 {[%emt 0:05:20]} 12. Nxe4 {[%emt 0:00:19]} fxe4 {[%emt 0:07:03]} 13. Nd2 {[%emt 0:02:49]} Nc6 $146 {[%emt 0:00:32]} (13... Qg5 14. Bc4 Bb7 15. Qg4 Qxg4 16. hxg4 d5 17. Bb5 a6 18. Ba4 Bc6 19. Bb3 Kf7 {1-0 Hambleton,A (2420)-Samant,A (2478) Titled Tuesday intern op 26th Nov Late blitz 2024 (5)}) 14. Bc4 {[%emt 0:08:45]} (14. Rc1 {is more complex.} Qg5 15. a3 Rf6 16. Nc4) 14... Bxc4 {[%emt 0:02:25]} 15. Nxc4 {[%emt 0:00:09]} d5 {[%emt 0:00:22]} 16. Nd2 {[%emt 0:03:37]} Qe7 {[%emt 0:05:55]} 17. a3 {[%emt 0:03:11] The position is equal.} Rf6 {[%emt 0:06:26]} 18. Rc1 {[%emt 0:03:29]} Qd6 {[%emt 0:07:23]} 19. f4 {[%emt 0:08:35]} exf3 {[%emt 0:01:08] An uneventful encounter.   Weighted Error Value: White=0.08 (flawless) /Black=0.08 (flawless)   Inaccurate:     	White=2     	Black=2      OK:         	White=6     	Black=4      Best:        	---       	Black=1} 1/2-1/2

[Event "FIDE WSTC Open 50 2025"]
[Site "Prague"]
[Date "2025.02.18"]
[Round "2.40"]
[White "Wengholm, Anders"]
[Black "Coste, Thierry"]
[Result "0-1"]
[Annotator "TA"]
[ECO "A05"]
[WhiteElo "2132"]
[BlackElo "2027"]
[PlyCount "58"]
[EventDate "2025.02.17"]
[EventType "team-tourn"]
[EventCountry "CZE"]
[SourceTitle "playchess.com"]
[Source "ChessBase"]
[SourceQuality "1"]
[TimeControl "40/5400+30:1800+30"]

{[%evp 24,58,20,1,39,36,98,93,100,89,300,304,259,202,183,220,191,173,187,189,204,185,195,186,190,180,197,197,226,234,223,202,322,-107,-149,-941,-933]} 1. Nf3 {[%emt 0:00:05]} Nf6 {[%emt 0:00:44]} 2. c4 {[%emt 0:01:35]} e6 {[%emt 0:00:30]} 3. g3 {[%emt 0:02:56]} d5 {[%emt 0:00:29]} 4. Bg2 {[%emt 0:00:59]} Be7 {[%emt 0:00:36]} 5. d4 {[%emt 0:00:52]} O-O {[%emt 0:00:32]} 6. O-O {[%emt 0:00:08]} dxc4 {[%emt 0:00:39]} 7. Qc2 {[%emt 0:00:40]} a6 {[%emt 0:01:13]} 8. a4 {[%emt 0:00:50]} Bd7 {[%emt 0:00:59]} 9. Rd1 {[%emt 0:00:46]} Bc6 {[%emt 0:00:46]} 10. Nc3 {[%emt 0:00:58]} Bxf3 {[%emt 0:07:18]} 11. Bxf3 {[%emt 0:00:11]} Nc6 {[%emt 0:00:41]} 12. Bxc6 {[%emt 0:01:21]} bxc6 {[%emt 0:00:15]} 13. a5 {[%emt 0:01:38]} c5 {[%emt 0:11:16] 13...Nd5 is the modern continuation. E05: Open Catalan: 5 Nf3 Be7.} 14. dxc5 {[%emt 0:01:44]} Qe8 {[%emt 0:00:26]} ({Better is} 14... Qb8 $14) 15. Ra4 $16 {[%emt 0:04:05]} Bxc5 {[%emt 0:06:42] White is better.} 16. Rxc4 {[%emt 0:00:19]} Qe7 $146 {[%emt 0:02:35] [#]} (16... Be7 $16) (16... Bd6 17. Bg5 Nd7 18. Ne4 Ne5 19. Rc3 f6 20. Bf4 Rd8 21. Bxe5 Bxe5 22. Rxd8 Qxd8 {1-0 Soltanici,R (2345)-Morozov,N (2271) MDA-ch Kishinev 2015 (10)}) 17. Bg5 $1 $18 {[%emt 0:02:35] Hoping for Ne4.} Rfd8 {[%emt 0:06:23]} 18. Rxd8+ {[%emt 0:01:52]} Rxd8 {[%emt 0:00:10]} 19. Ne4 {[%emt 0:02:01]} Bd4 {[%emt 0:07:08]} 20. Rxc7 {[%emt 0:06:52]} Qb4 {[%emt 0:00:40][%cal Of6e4]} 21. Bd2 {[%emt 0:49:37]} Qb8 {[%emt 0:14:49] White must now prevent ...Nxe4.} ({Don't blunder} 21... Bxf2+ $2 22. Nxf2 Qb8 23. Bg5 $18) 22. Nxf6+ {[%emt 0:05:42]} gxf6 {[%emt 0:00:43]} 23. b4 {[%emt 0:04:47]} Kg7 {[%emt 0:03:05] Prevents Bh6+.} 24. Be1 {[%emt 0:03:22]} h5 {[%emt 0:01:00][%cal Bh7h5,Bh5h4][%mdl 32]} 25. Qc6 {[%emt 0:01:23]} h4 {[%emt 0:02:20]} 26. e3 {[%emt 0:01:04]} Be5 {[%emt 0:02:45]} 27. Rb7 {[%emt 0:00:12]} Rd6 {[%emt 0:07:10] [#]} (27... Qc8 {might work better.} 28. Qxc8 (28. Qxa6 Rd7 $15) 28... Rxc8) 28. Rxb8 $2 {[%emt 0:00:59]} (28. Qe4 $1 $18 {[%cal Re4g4]} Qc8 29. Ra7 (29. gxh4 Rd5 $17) 29... hxg3 30. hxg3) 28... Rxc6 $17 {[%emt 0:00:05]} 29. f4 $2 {[%emt 0:00:45][%mdl 8192]} (29. Rb6 $17 Rc1 30. Kg2 (30. Kf1 $2 Bc3 $19) 30... Rxe1 31. Rxa6) 29... Bxb8 {[%emt 0:00:14] Weighted Error Value: White=0.66/Black=0.47  Loses game:     	White=1     	Black=1      Missed win:     	White=1     	---        Mistake:       	---       	Black=2      OK:         	White=6     	Black=6      Best:        	White=2     	Black=2      Strong:       	White=1     	---} 0-1

[Event "FIDE WSTC Open 50 2025"]
[Site "Prague"]
[Date "2025.02.19"]
[Round "3.3"]
[White "Wells, Peter K"]
[Black "Varga, Zoltan"]
[Result "0-1"]
[Annotator "TA"]
[ECO "D20"]
[WhiteElo "2358"]
[BlackElo "2301"]
[PlyCount "70"]
[EventDate "2025.02.17"]
[EventType "team-tourn"]
[EventCountry "CZE"]
[SourceTitle "playchess.com"]
[Source "ChessBase"]
[SourceQuality "1"]
[TimeControl "40/5400+30:1800+30"]

{[%evp 14,70,24,15,19,19,17,0,0,16,24,0,29,10,108,122,115,111,116,93,100,97,71,52,54,59,80,81,70,75,79,-2,0,0,0,0,0,0,0,-58,-47,-152,-140,-188,-191,-274,-137,-129,-126,-314,-308,-504,-508,-495,-484,-513,-489,-526,-519]} 1. d4 {[%emt 0:00:03]} d5 {[%emt 0:00:26]} 2. c4 {[%emt 0:00:11]} dxc4 {[%emt 0:00:37]} 3. e4 {[%emt 0:00:49][%cal Be2e4,Be4e5][%mdl 32]} Nf6 {[%emt 0:00:11]} 4. e5 {[%emt 0:00:24]} Nd5 {[%emt 0:00:05]} 5. Bxc4 {[%emt 0:00:16]} Nb6 {[%emt 0:00:04]} 6. Bd3 {[%emt 0:00:57]} Nc6 {[%emt 0:00:19]} 7. Be3 {[%emt 0:01:18]} Nb4 {[%emt 0:02:16]} 8. Be4 {[%emt 0:00:39]} f5 {[%emt 0:08:42] D20: Queen's Gambit Accepted: 3 e3 and 3 e4.} 9. a3 {[%emt 0:05:46]} N4d5 {[%emt 0:03:31] White must now prevent ...Nxe3.} 10. Bxd5 {[%emt 0:06:32]} Qxd5 {[%emt 0:08:16] The position is equal.} 11. Nf3 {[%emt 0:04:45]} Be6 {[%emt 0:06:30]} 12. Nc3 {[%emt 0:04:50]} Qd7 {[%emt 0:00:10]} 13. O-O $146 {[%emt 0:09:23]} (13. Ng5 O-O-O 14. Nxe6 Qxe6 15. a4 Nd5 16. a5 Qa6 17. Qe2 Qxe2+ 18. Kxe2 e6 19. a6 b6 20. Nb5 Kb8 21. Rhc1 Nb4 22. Rxc7 {1-0 Bluebaum,M (2647)-Berger,S (2408) GER-ch Blitz 2020 (20)}) 13... Bc4 {[%emt 0:04:41] [#]} (13... h6 $11) 14. e6 $1 $16 {[%emt 0:25:14][%mdl 512]} Qxe6 {[%emt 0:16:24]} (14... Bxe6 15. Ne5) 15. Re1 {[%emt 0:00:40] White sacrificed a pawn} c6 {[%emt 0:00:01]} 16. Bf4 {[%emt 0:14:37][%mdl 1024] Against Qd6. White has strong compensation.} Qg8 {[%emt 0:00:45]} 17. Qc2 {[%emt 0:05:27]} g6 {[%emt 0:01:51]} 18. Be5 {[%emt 0:05:20][%csl Oe5] Strong Square White (e5) Prevents Bd5.} Bg7 {[%emt 0:01:28]} 19. a4 {[%emt 0:02:04][%cal Ob2b3]} a5 {[%emt 0:07:28]} 20. Rab1 {[%emt 0:06:56] and b4 should not be overlooked} Nd5 {[%emt 0:08:33]} 21. Nxd5 {[%emt 0:01:48]} Bxd5 {[%emt 0:00:39] This pair of bishops is nice.} 22. Nd2 {[%emt 0:02:33] Prevents Be4} (22. Qc5 $16) 22... Qf7 {[%emt 0:19:23]} 23. b4 {[%emt 0:00:10]} Bxe5 {[%emt 0:03:37]} 24. Rxe5 {[%emt 0:00:03]} axb4 {[%emt 0:02:38]} 25. Rxb4 {[%emt 0:00:06]} e6 {[%emt 0:02:08]} 26. Qc5 {[%emt 0:00:52]} ({White should play} 26. Nb3 $11) 26... Qe7 $15 {[%emt 0:01:50]} 27. Qxe7+ {[%emt 0:01:34]} (27. Qc3 $15) 27... Kxe7 $17 {[%emt 0:00:01][%csl Od5] Strong Square Black (d5)} 28. Rxb7+ {[%emt 0:00:04]} (28. Re1 $17) 28... Kf6 $19 {[%emt 0:00:02][%cal Oc6c5]} 29. Rb4 {[%emt 0:01:02] [#]} (29. Nf3 {was worth a try.}) 29... Rhb8 {[%emt 0:00:01]} (29... c5 $1 $19 {[%cal Rc5b4]} 30. Rb6 Rhd8 (30... cxd4 $2 {perishes.} 31. Rxd5 Rxa4 32. g3 $18)) 30. Rxb8 $17 {[%emt 0:00:28]} Rxb8 {[%emt 0:00:03] KRB-KRN} 31. f4 $2 {[%emt 0:00:31] White does not recover from this.} (31. Re1 $17) 31... Rb4 $19 {[%emt 0:00:46][%csl LRa4,LRd4]} 32. Kf2 $2 {[%emt 0:00:36]} (32. Re2) 32... Rxd4 {[%emt 0:01:11] Black is clearly winning.} 33. Ke3 {[%emt 0:00:13]} Rxa4 {[%emt 0:00:15]} 34. g3 {[%emt 0:00:35]} c5 {[%emt 0:00:43]} 35. Kd3 {[%emt 0:00:42]} g5 {[%emt 0:00:15] Weighted Error Value: White=0.32/Black=0.12 (very precise)   Loses game:     	White=1     	---        Mistake:       	White=6     	Black=2      OK:         	White=10    	Black=17     Best:        	---       	Black=1      Brilliant:      	White=1     	---} 0-1

[Event "FIDE WSTC Open 50 2025"]
[Site "Prague"]
[Date "2025.02.19"]
[Round "3.4"]
[White "Krizsany, Laszlo"]
[Black "Hebden, Mark L"]
[Result "0-1"]
[Annotator "TA"]
[ECO "E61"]
[WhiteElo "2303"]
[BlackElo "2363"]
[PlyCount "70"]
[EventDate "2025.02.17"]
[EventType "team-tourn"]
[EventCountry "CZE"]
[SourceTitle "playchess.com"]
[Source "ChessBase"]
[SourceQuality "1"]
[TimeControl "40/5400+30:1800+30"]

{[%evp 14,70,9,4,8,-25,-25,-25,-22,-20,-18,-19,-21,-31,-34,-37,-17,-37,-14,-22,-21,-31,-27,-62,-62,-56,-48,-47,-57,-56,-58,-58,-56,-67,-50,-81,-76,-160,-86,-130,-68,-156,-53,-163,-170,-160,-157,-189,-166,-179,-137,-339,-268,-313,-260,-997,-987,-983,-962]} 1. d4 {[%emt 0:00:06]} Nf6 {[%emt 0:00:29]} 2. c4 {[%emt 0:00:12]} g6 {[%emt 0:00:17]} 3. Nc3 {[%emt 0:00:10]} Bg7 {[%emt 0:00:07]} 4. g3 {[%emt 0:00:18]} O-O {[%emt 0:00:31]} 5. Bg2 {[%emt 0:00:07]} d6 {[%emt 0:00:26]} 6. e3 {[%emt 0:00:35]} e5 {[%emt 0:01:01]} 7. Nge2 {[%emt 0:00:33]} Re8 {[%emt 0:02:19]} 8. O-O {[%emt 0:00:19]} e4 {[%emt 0:00:27] E61: King's Indian: Early deviations for White, including Smyslov System.} 9. Qc2 {[%emt 0:09:56][%cal Rc3e4]} Bf5 {[%emt 0:01:34]} 10. h3 {[%emt 0:05:58]} h5 {[%emt 0:00:31] Black has an edge.} 11. b3 {[%emt 0:01:15]} c6 {[%emt 0:02:03]} 12. Ba3 {[%emt 0:12:56]} Na6 {[%emt 0:01:40]} 13. Qd2 $146 {[%emt 0:04:22]} ({Predecessor:} 13. b4 Qd7 14. Kh2 Nc7 15. Qb3 d5 16. cxd5 cxd5 17. b5 b6 18. Rfc1 Rad8 19. Nf4 {0-1 Kamshonkov,S-Terentiev,V Makhachkala 1974}) 13... Qd7 {[%emt 0:03:29]} 14. Kh2 {[%emt 0:00:20]} Nc7 {[%emt 0:06:05]} 15. d5 {[%emt 0:05:22]} c5 {[%emt 0:00:31]} 16. Bb2 {[%emt 0:07:00]} Qe7 {[%emt 0:04:42]} 17. Rae1 {[%emt 0:05:02]} Rab8 {[%emt 0:00:55]} 18. Ba1 {[%emt 0:02:54]} b5 {[%emt 0:05:04]} 19. Nxb5 {[%emt 0:04:37]} Nxb5 {[%emt 0:00:15]} 20. cxb5 {[%emt 0:00:03]} Rxb5 {[%emt 0:00:40]} 21. Rc1 {[%emt 0:01:10]} Nd7 {[%emt 0:02:09]} 22. Bxg7 {[%emt 0:03:50]} Kxg7 {[%emt 0:00:09]} 23. Nc3 {[%emt 0:01:56]} Rb4 {[%emt 0:02:17]} 24. Qc2 {[%emt 0:04:05]} Qe5 {[%emt 0:07:31]} 25. Rfd1 {[%emt 0:02:08]} (25. Nb1 $142) 25... Nf6 {[%emt 0:01:51]} (25... h4 26. Rh1 Nf6) 26. Ne2 {[%emt 0:06:11]} a5 {[%emt 0:04:05] Black has more active pieces.} (26... Nxd5 27. Qd2 Be6 28. Nf4 Nxf4 29. exf4 $11) ({Black should try} 26... h4 $17 27. Qc3 hxg3+ 28. Nxg3 Qxc3 29. Rxc3 a5 30. Nxf5+ gxf5) 27. Qd2 {[%emt 0:01:42]} (27. Qc3 $15) 27... a4 {[%emt 0:02:07]} (27... h4 $17 28. Qc3 hxg3+ 29. Nxg3 Qxc3 30. Nxf5+ gxf5 31. Rxc3 Rh8) 28. Rc4 {[%emt 0:02:26]} (28. Nd4 $1 $15 Qxd5 29. bxa4) 28... Rxc4 $19 {[%emt 0:04:38]} ({Don't play} 28... axb3 29. Rxb4 cxb4 30. axb3 $15) 29. bxc4 {[%emt 0:00:02]} Rb8 {[%emt 0:00:27] Against Rb1} 30. Rc1 {[%emt 0:04:07]} a3 $36 {[%emt 0:03:22][%mdl 2048] Black plays on the queen side and is better Keeping White busy.} 31. Nc3 {[%emt 0:03:28]} h4 {[%emt 0:01:52]} 32. Rb1 {[%emt 0:01:03] Wards off Rb2. White does not recover from this.} (32. Nb5 $17 {was the only chance.}) 32... hxg3+ {[%emt 0:01:45]} 33. fxg3 {[%emt 0:00:07]} Rh8 {[%emt 0:01:28][%cal Of5h3] White must now prevent ...Bxh3!.} 34. Ne2 $2 {[%emt 0:01:44] [#]} (34. Rh1) 34... Bxh3 $1 {[%emt 0:00:44]} 35. Bxh3 {[%emt 0:00:43]} Ng4+ {[%emt 0:00:15] Weighted Error Value: White=0.50/Black=0.23 (precise)   Loses game:     	White=1     	---        Mistake:       	White=4     	Black=3      Inaccurate:     	White=4     	---        OK:         	White=8     	Black=7      Brilliant:      	---       	Black=1} 0-1